bitfinex-derivatives/quotes_BTCF0:USTF0_20230901
["timestamp","ask_amount","ask_price","bid_price","bid_amount"]
[1693588531928,0.003,25603.0,25594.0,0.3873]
[1693588532131,0.003,25598.0,25594.0,0.02]
[1693588532437,1.1235,25609.0,25599.0,0.006]
[1693588532622,0.15108291,25640.0,25599.0,0.006]
[1693588532623,1.1235,25612.0,25599.0,0.626]
[1693588532825,1.4235,25612.0,25600.0,0.97285384]
[1693588533038,1.1235,25609.0,25600.0,0.99285384]
[1693588533532,0.6308163,25619.0,25602.0,0.3873]
[1693588533533,0.0039,25614.0,25602.0,0.3873]
[1693588533839,1.1235,25617.0,25603.0,1.71023]
[1693588534038,1.1235,25617.0,25607.0,0.3873]
[1693588534224,0.0039,25625.0,25607.0,0.3873]
[1693588534225,0.2122,25625.0,25613.0,1.5108]
[1693588534421,0.2122,25625.0,25613.0,1.5308]
[1693588534422,0.2322,25625.0,25613.0,1.5308]
[1693588534730,0.0439,25625.0,25614.0,0.5877031]
[1693588535121,0.0439,25625.0,25616.0,1.5108]
[1693588535122,0.02,25625.0,25616.0,1.5108]
[1693588535327,0.023,25625.0,25616.0,1.5308]
[1693588535529,0.023,25625.0,25617.0,0.97463367]
[1693588535732,0.023,25625.0,25613.0,0.4243]
[1693588535733,1.1665,25625.0,25613.0,0.4243]
[1693588536035,1.1274,25622.0,25613.0,0.037]
[1693588536231,2.6235,25620.0,25613.0,0.037]
[1693588536535,1.1435,25620.0,25617.0,0.006]
[1693588536831,0.0109,25625.0,25617.0,0.006]
[1693588537036,0.0109,25625.0,25618.0,0.58399376]
[1693588537037,0.0509,25625.0,25618.0,0.58399376]
[1693588538035,0.0509,25625.0,25620.0,0.3873]
[1693588538036,0.007,25625.0,25620.0,0.3873]
[1693588538229,0.007,25625.0,25620.0,0.02]
[1693588538535,0.004,25622.0,25620.0,0.02]
[1693588538741,0.3,25632.0,25621.0,1.17577308]
[1693588539033,0.007,25625.0,25621.0,0.02]
[1693588539236,0.007,25625.0,25622.0,0.20685751]
[1693588539427,0.007,25625.0,25622.0,0.5402673]
[1693588539629,0.003,25625.0,25623.0,0.20685751]
[1693588539832,0.003,25625.0,25622.0,0.9275673]
[1693588540135,0.003,25625.0,25623.0,0.7935401]
[1693588540440,0.0039,25633.0,25623.0,0.99398259]
[1693588540641,0.0239,25633.0,25623.0,0.99398259]
[1693588541042,0.003,25625.0,25623.0,0.99398259]
[1693588541230,0.003,25625.0,25624.0,1.71765751]
[1693588541428,0.0239,25633.0,25624.0,2.1308]
[1693588541429,0.0039,25633.0,25624.0,2.1308]
[1693588541626,0.0039,25633.0,25624.0,2.71849848]
[1693588541836,0.0069,25633.0,25624.0,2.11849848]
[1693588542136,0.004,25625.0,25624.0,2.11849848]
[1693588542333,0.004,25625.0,25624.0,2.32535599]
[1693588542542,0.0069,25633.0,25624.0,2.71849848]
[1693588542731,0.006,25633.0,25631.0,1.5108]
[1693588543036,0.006,25633.0,25628.0,1.2]
[1693588543037,0.006,25633.0,25632.0,0.20685751]
[1693588543234,0.003,25633.0,25632.0,0.58155514]
[1693588543433,0.003,25633.0,25632.0,0.78841265]
[1693588543630,0.003,25633.0,25632.0,0.22685751]
[1693588543837,0.007,25633.0,25632.0,0.20685751]
[1693588544030,0.007,25633.0,25632.0,1.1968935]
[1693588544229,0.007,25633.0,25632.0,0.24385751]
[1693588545435,0.007,25633.0,25632.0,0.25685751]
[1693588545638,0.007,25633.0,25632.0,0.50086343]
[1693588545838,0.007,25633.0,25632.0,1.49009596]
[1693588547140,0.007,25633.0,25632.0,1.47009596]
[1693588547747,0.007,25633.0,25632.0,1.49009596]
[1693588548437,0.04861487,25634.0,25633.0,0.20685751]
[1693588548633,0.1944,25646.0,25633.0,1.77480592]
[1693588548845,0.1944,25646.0,25639.0,1.1235]
[1693588549044,0.1944,25646.0,25639.0,1.1435]
[1693588549339,0.2144,25646.0,25639.0,1.1235]
[1693588549846,0.0039,25653.0,25645.0,1.1235]
[1693588550150,0.02,25653.0,25650.0,1.1235]
[1693588550329,0.0039,25656.0,25651.0,0.20685751]
[1693588550531,0.0239,25656.0,25650.0,1.1235]
[1693588550742,0.02,25656.0,25650.0,1.1435]
[1693588551341,0.0039,25663.0,25655.0,1.1235]
[1693588551540,0.02,25663.0,25657.0,1.1235]
[1693588551943,0.15120291,25672.0,25660.0,1.1235]
[1693588552146,0.15120291,25672.0,25666.0,1.1235]
[1693588552147,0.02012,25672.0,25666.0,1.1235]
[1693588552641,0.02012,25672.0,25669.0,1.1235]
[1693588552942,0.02012,25672.0,25671.0,1.1235]
[1693588553147,0.03712,25672.0,25671.0,1.1235]
[1693588553346,0.03712,25672.0,25671.0,1.35035751]
[1693588553645,0.03712,25672.0,25671.0,1.93639896]
[1693588554346,0.03712,25672.0,25671.0,1.97339896]
[1693588554939,0.00012,25672.0,25671.0,1.97339896]
[1693588555140,0.0039,25677.0,25671.0,1.76654145]
[1693588555337,0.0039,25677.0,25676.0,1.1235]
[1693588555536,0.0039,25679.0,25676.0,1.1435]
[1693588555746,0.0039,25679.0,25678.0,1.1235]
[1693588555952,0.0039,25678.0,25676.0,1.1235]
[1693588556154,0.0039,25677.0,25676.0,1.1235]
[1693588556347,0.0039,25677.0,25676.0,1.33035751]
[1693588556348,0.002,25677.0,25676.0,1.33035751]
[1693588556542,0.002,25677.0,25676.0,1.93430598]
[1693588556747,0.0039,25679.0,25676.0,1.94580598]
[1693588556948,0.0309,25679.0,25678.0,1.1265]
[1693588557345,0.0309,25679.0,25678.0,1.33335751]
[1693588557650,0.027,25679.0,25678.0,1.33335751]
[1693588558449,0.0039,25682.0,25678.0,2.30001427]
[1693588558652,0.0039,25683.0,25681.0,1.1235]
[1693588558851,0.0039,25683.0,25679.0,0.3873]
[1693588559049,0.2024,25694.0,25682.0,1.70724777]
[1693588559050,0.0039,25684.0,25682.0,1.70724777]
[1693588559351,0.0039,25689.0,25683.0,1.1235]
[1693588559557,0.0039,25689.0,25688.0,1.1235]
[1693588559745,0.0039,25689.0,25688.0,1.33035751]
[1693588560051,0.0039,25690.0,25688.0,1.35035751]
[1693588560354,0.0039,25693.0,25689.0,1.33035751]
[1693588560550,0.0039,25690.0,25688.0,0.59508726]
[1693588560762,0.02,25693.0,25688.0,0.0115]
[1693588560763,0.0039,25689.0,25688.0,0.0115]
[1693588560950,0.0039,25689.0,25688.0,1.138]
[1693588561143,0.0239,25689.0,25688.0,1.34485751]
[1693588561452,0.0039,25691.0,25688.0,1.95038225]
[1693588561641,0.027,25689.0,25688.0,0.60302474]
[1693588561846,0.027,25689.0,25688.0,1.74652474]
[1693588562251,0.002,25689.0,25688.0,1.98438225]
[1693588562445,0.002,25689.0,25688.0,2.02138225]
[1693588563055,0.002,25689.0,25688.0,2.40868225]
[1693588563642,0.0059,25689.0,25688.0,1.43585751]
[1693588563846,0.0059,25689.0,25688.0,1.41585751]
[1693588564051,0.0059,25689.0,25677.0,1.2]
[1693588564052,0.09970637,25687.0,25682.0,1.1235]
[1693588564245,0.0039,25683.0,25682.0,1.1235]
[1693588564448,0.09970637,25687.0,25683.0,0.5841769]
[1693588564649,0.09970637,25687.0,25686.0,1.1235]
[1693588564852,0.09970637,25687.0,25684.0,1.1235]
[1693588564853,0.0039,25685.0,25684.0,1.1235]
[1693588565448,0.0039,25685.0,25684.0,1.23287813]
[1693588565656,0.0239,25685.0,25684.0,1.23287813]
[1693588565856,0.0039,25685.0,25684.0,1.23287813]
[1693588566054,0.016,25685.0,25684.0,2.21158759]
[1693588566246,0.3,25697.0,25684.0,2.21158759]
[1693588566247,0.3,25697.0,25684.0,2.10220946]
[1693588566454,0.013,25685.0,25684.0,0.99970946]
[1693588566656,0.3,25697.0,25684.0,3.32320946]
[1693588566848,0.5035,25697.0,25693.0,1.1235]
[1693588567048,0.5035,25697.0,25694.0,0.10937813]
[1693588567049,0.02,25697.0,25694.0,0.10937813]
[1693588567354,0.02,25697.0,25693.0,1.1235]
[1693588567553,0.02,25697.0,25694.0,0.10937813]
[1693588567748,0.02,25697.0,25693.0,1.1235]
[1693588567958,0.02,25697.0,25694.0,0.10937813]
[1693588568147,0.02,25697.0,25693.0,1.1235]
[1693588568352,0.11309677,25696.0,25694.0,0.003]
[1693588568659,0.02,25696.0,25694.0,0.003]
[1693588568961,0.02,25696.0,25695.0,0.10937813]
[1693588569152,0.02,25696.0,25694.0,0.003]
[1693588569453,0.057,25696.0,25695.0,0.10937813]
[1693588569846,0.057,25696.0,25694.0,0.006]
[1693588570258,0.057,25696.0,25694.0,0.11537813]
[1693588570458,0.057,25696.0,25695.0,1.1235]
[1693588570960,0.022,25697.0,25696.0,0.00389]
[1693588571356,0.00389,25697.0,25696.0,0.10937813]
[1693588571756,0.00389,25697.0,25696.0,0.11326813]
[1693588572261,0.03789,25697.0,25696.0,0.11726813]
[1693588572867,0.01589,25697.0,25696.0,0.11426813]
[1693588573059,0.03889,25697.0,25696.0,0.11726813]
[1693588573462,0.03889,25697.0,25696.0,0.11337813]
[1693588573659,0.05889,25697.0,25696.0,0.11337813]
[1693588573859,0.00312693,25688.0,25685.0,0.3893]
[1693588574056,0.02312693,25688.0,25687.0,1.1235]
[1693588574365,0.00313693,25690.0,25689.0,0.00389]
[1693588574561,0.00313693,25690.0,25689.0,1.12739]
[1693588574865,0.00313693,25690.0,25689.0,1.23287813]
[1693588574866,0.02313693,25690.0,25689.0,1.23287813]
[1693588575856,0.00313693,25693.0,25690.0,0.00389]
[1693588576163,0.00313693,25693.0,25692.0,1.1235]
[1693588576470,0.02313693,25693.0,25692.0,1.1235]
[1693588577063,0.02313693,25693.0,25692.0,1.23287813]
[1693588577362,0.02313693,25693.0,25692.0,1.1235]
[1693588577363,0.05813693,25693.0,25692.0,1.1235]
[1693588577566,0.05813693,25693.0,25692.0,1.23287813]
[1693588577766,0.09513693,25693.0,25692.0,1.23287813]
[1693588577962,0.09513693,25693.0,25692.0,1.23587813]
[1693588578558,0.09513693,25693.0,25692.0,1.23887813]
[1693588578757,0.092,25693.0,25692.0,1.24276813]
[1693588578963,0.092,25693.0,25692.0,1.23887813]
[1693588578964,0.07513693,25693.0,25692.0,1.23887813]
[1693588579162,0.09513693,25693.0,25692.0,0.006]
[1693588579364,0.00313693,25679.0,25677.0,0.0763]
[1693588579567,0.3,25685.0,25677.0,0.0763]
[1693588579568,0.00313693,25678.0,25677.0,0.0763]
[1693588579762,0.00313693,25678.0,25677.0,1.1998]
[1693588580073,0.3,25685.0,25677.0,1.1998]
[1693588580074,0.00313693,25681.0,25677.0,1.91711631]
[1693588580267,0.00313693,25681.0,25680.0,1.1235]
[1693588580564,0.00313693,25681.0,25680.0,1.23287813]
[1693588580761,0.02313693,25681.0,25680.0,1.23287813]
[1693588580963,0.00313693,25684.0,25680.0,1.83850324]
[1693588581161,0.00313693,25684.0,25683.0,1.1235]
[1693588581568,0.02313693,25684.0,25683.0,1.1235]
[1693588581762,0.00313693,25682.0,25681.0,1.1235]
[1693588581963,0.02313693,25682.0,25681.0,1.1235]
[1693588582160,0.02313693,25682.0,25681.0,1.23287813]
[1693588582363,0.00313693,25682.0,25681.0,1.13817813]
[1693588582561,0.24561184,25682.0,25681.0,0.9187]
[1693588582765,0.00313693,25681.0,25680.0,0.004]
[1693588582970,0.00313693,25673.0,25672.0,1.0288]
[1693588583274,0.00313693,25670.0,25663.0,0.6]
[1693588583477,0.00313693,25670.0,25669.0,1.0288]
[1693588583667,0.3,25679.0,25669.0,1.0288]
[1693588583668,0.3,25679.0,25672.0,1.0288]
[1693588583976,0.32,25679.0,25675.0,1.0288]
[1693588584278,0.22247491,25678.0,25675.0,1.0288]
[1693588584472,0.02,25678.0,25675.0,1.0288]
[1693588584675,0.02,25678.0,25664.0,1.06015393]
[1693588584676,0.3,25673.0,25669.0,0.016]
[1693588584867,0.32,25673.0,25669.0,1.0448]
[1693588585168,0.3,25670.0,25657.0,0.04068601]
[1693588585368,0.32,25670.0,25666.0,1.0288]
[1693588585574,0.22247491,25669.0,25666.0,1.0288]
[1693588585774,0.3,25667.0,25663.0,1.0288]
[1693588585977,0.3,25664.0,25663.0,1.0288]
[1693588586275,0.304,25670.0,25664.0,1.0288]
[1693588586468,0.324,25670.0,25669.0,1.0288]
[1693588586669,0.324,25670.0,25669.0,1.13817813]
[1693588586976,0.32,25670.0,25669.0,1.15417813]
[1693588587379,0.036,25670.0,25669.0,1.25217813]
[1693588587674,0.036,25670.0,25664.0,0.3913]
[1693588587675,0.036,25670.0,25667.0,1.1228]
[1693588587866,0.3,25673.0,25667.0,1.1228]
[1693588588069,0.336,25670.0,25663.0,0.006]
[1693588588275,0.356,25670.0,25663.0,0.006]
[1693588588862,0.356,25670.0,25664.0,1.36651113]
[1693588589062,0.356,25670.0,25664.0,1.1228]
[1693588589274,0.3,25666.0,25661.0,1.1228]
[1693588589469,0.32,25666.0,25662.0,0.24372279]
[1693588589672,0.32,25666.0,25663.0,0.10937813]
[1693588589875,0.32,25666.0,25661.0,1.1228]
[1693588590071,0.32,25666.0,25664.0,0.002]
[1693588590577,0.3,25669.0,25664.0,0.002]
[1693588590777,0.3,25669.0,25666.0,1.1228]
[1693588591081,0.3,25669.0,25667.0,0.10937813]
[1693588591381,0.32,25669.0,25668.0,0.10937813]
[1693588591576,0.32,25669.0,25666.0,1.1228]
[1693588591778,0.3,25673.0,25668.0,1.1228]
[1693588591975,0.3,25673.0,25668.0,1.1428]
[1693588591976,0.32,25673.0,25668.0,1.1428]
[1693588592275,0.32,25673.0,25668.0,1.1228]
[1693588592472,0.32,25673.0,25666.0,1.1228]
[1693588592781,0.036,25669.0,25666.0,1.1248]
[1693588593079,0.072,25669.0,25668.0,1.1228]
[1693588593282,0.072,25669.0,25668.0,1.1428]
[1693588593477,0.036,25669.0,25668.0,1.25217813]
[1693588593692,0.12937814,25669.0,25668.0,0.001]
[1693588594073,0.12937814,25669.0,25666.0,0.002]
[1693588594074,0.3,25667.0,25666.0,0.002]
[1693588594280,0.3,25664.0,25656.0,1.2735]
[1693588594473,0.3,25664.0,25655.0,0.1807]
[1693588594474,0.3,25664.0,25657.0,0.24374395]
[1693588594677,0.32,25664.0,25658.0,0.24374395]
[1693588594986,0.32,25664.0,25659.0,0.24374395]
[1693588595279,0.32,25664.0,25655.0,0.1807]
[1693588595474,0.32,25664.0,25656.0,0.24375609]
[1693588595681,0.32,25664.0,25656.0,1.36655609]
[1693588595872,0.32,25664.0,25657.0,0.24375609]
[1693588596066,0.32,25664.0,25657.0,0.26375609]
[1693588596275,0.32,25664.0,25658.0,0.24375609]
[1693588596475,0.32,25664.0,25658.0,0.26375609]
[1693588596476,0.36,25664.0,25658.0,0.26375609]
[1693588596677,0.36,25664.0,25658.0,0.02]
[1693588596980,0.387,25664.0,25658.0,0.02]
[1693588597181,0.387,25664.0,25657.0,0.001]
[1693588597379,0.056,25664.0,25660.0,1.1228]
[1693588597577,0.092,25664.0,25661.0,0.10937813]
[1693588597782,0.092,25664.0,25660.0,1.1228]
[1693588597989,0.41309677,25663.0,25658.0,0.001]
[1693588598177,0.32,25663.0,25658.0,0.001]
[1693588598775,0.3,25659.0,25658.0,0.001]
[1693588598983,1.52,25659.0,25657.0,0.13065743]
[1693588599181,0.3,25656.0,25647.0,1.1228]
[1693588599384,0.3,25653.0,25648.0,0.24382396]
[1693588599681,0.32,25653.0,25649.0,0.24382396]
[1693588599879,0.11309677,25652.0,25644.0,1.35456166]
[1693588600083,0.02,25652.0,25645.0,0.24382158]
[1693588600680,0.3,25650.0,25649.0,0.012]
[1693588600887,0.02,25652.0,25649.0,0.012]
[1693588601081,0.004,25653.0,25649.0,0.012]
[1693588601282,1.2,25662.0,25649.0,0.012]
[1693588601283,0.3,25657.0,25652.0,1.1228]
[1693588601490,0.3,25661.0,25655.0,1.1228]
[1693588601678,0.3,25661.0,25658.0,1.1228]
[1693588601879,0.3,25661.0,25659.0,0.10937813]
[1693588602173,0.3,25661.0,25658.0,1.1228]
[1693588602378,0.3,25661.0,25659.0,0.10937813]
[1693588602690,0.3,25661.0,25658.0,1.1228]
[1693588602891,0.3,25661.0,25659.0,0.10937813]
[1693588603186,0.036,25661.0,25660.0,1.1228]
[1693588603382,0.036,25661.0,25660.0,1.23217813]
[1693588603584,0.073,25661.0,25660.0,1.23217813]
[1693588603975,0.073,25661.0,25660.0,1.25217813]
[1693588605192,0.037,25661.0,25660.0,1.25217813]
[1693588605378,0.073,25661.0,25659.0,0.003]
[1693588605587,0.036,25661.0,25658.0,1.1228]
[1693588605784,0.072,25661.0,25660.0,0.004]
[1693588606098,0.056,25661.0,25660.0,0.11337813]
[1693588606285,0.032,25661.0,25660.0,0.11037813]
[1693588606788,0.3,25664.0,25658.0,1.1228]
[1693588606983,0.072,25661.0,25660.0,0.004]
[1693588607285,0.072,25661.0,25652.0,0.5446]
[1693588607286,0.55847491,25661.0,25656.0,1.1228]
[1693588607478,0.048,25661.0,25660.0,0.001]
[1693588607680,0.048,25661.0,25660.0,0.11037813]
[1693588608479,0.012,25661.0,25660.0,0.001]
[1693588608690,0.045,25661.0,25660.0,0.001]
[1693588608998,0.033,25661.0,25660.0,0.10937813]
[1693588609494,0.033,25661.0,25660.0,0.11237813]
[1693588609692,0.07,25661.0,25660.0,0.13237813]
[1693588610085,0.072,25661.0,25660.0,0.13337813]
[1693588611398,0.3,25669.0,25660.0,0.69966515]
[1693588611598,0.3,25674.0,25665.0,1.1228]
[1693588611793,0.3,25671.0,25665.0,1.1428]
[1693588612398,0.3,25671.0,25670.0,1.0331]
[1693588612699,0.3,25671.0,25670.0,1.14247813]
[1693588613097,0.316,25671.0,25670.0,1.14247813]
[1693588613301,0.052,25671.0,25670.0,1.15857813]
[1693588613601,0.066,25671.0,25670.0,1.14057813]
[1693588613818,0.066,25671.0,25670.0,0.11137813]
[1693588613992,0.086,25671.0,25670.0,0.002]
[1693588614298,1.22829677,25671.0,25670.0,0.002]
[1693588614498,1.33767491,25671.0,25670.0,0.002]
[1693588614796,1.33767491,25671.0,25670.0,0.005]
[1693588615001,0.30847491,25671.0,25670.0,0.005]
[1693588615503,0.3,25664.0,25659.0,1.0292]
[1693588615704,0.3,25664.0,25660.0,0.24375484]
[1693588615998,0.3,25664.0,25661.0,0.10937813]
[1693588616204,0.3,25664.0,25662.0,1.27295484]
[1693588616401,0.3,25664.0,25663.0,0.35313297]
[1693588616588,0.3,25664.0,25663.0,0.10937813]
[1693588616791,0.3,25664.0,25663.0,0.12937813]
[1693588616995,0.3,25664.0,25663.0,1.13857813]
[1693588617204,0.3,25664.0,25661.0,1.0292]
[1693588617702,0.3,25664.0,25662.0,0.35313469]
[1693588617902,0.3,25664.0,25663.0,0.24375656]
[1693588618306,0.303,25664.0,25663.0,0.35313469]
[1693588618502,0.006,25664.0,25663.0,1.38233469]
[1693588618803,0.006,25664.0,25663.0,1.40233469]
[1693588619003,0.073,25664.0,25663.0,1.40833469]
[1693588619203,0.073,25664.0,25663.0,2.43753469]
[1693588619596,0.3,25670.0,25663.0,2.43753469]
[1693588619910,1.8746,25679.0,25671.0,0.0039]
[1693588619911,0.3,25674.0,25671.0,0.0039]
[1693588620101,0.3,25674.0,25672.0,1.13857813]
[1693588620303,0.3,25674.0,25673.0,0.0039]
[1693588620504,0.3,25674.0,25673.0,0.11327813]
[1693588620709,0.3,25674.0,25673.0,0.0856405]
[1693588620710,0.3039,25674.0,25673.0,0.0856405]
[1693588622207,0.0039,25676.0,25673.0,1.1148405]
[1693588622405,0.035,25674.0,25673.0,0.004]
[1693588622600,0.035,25674.0,25673.0,1.0532]
[1693588623008,0.035,25674.0,25673.0,1.1388405]
[1693588623715,0.035,25674.0,25673.0,1.1188405]
[1693588624303,0.005,25674.0,25673.0,1.1188405]
[1693588624606,0.005,25674.0,25673.0,1.36250126]
[1693588624910,0.037,25676.0,25673.0,1.38650126]
[1693588625095,0.3,25677.0,25675.0,1.0292]
[1693588625300,0.3039,25677.0,25675.0,1.0292]
[1693588625512,0.3039,25677.0,25676.0,0.0856405]
[1693588625808,0.0039,25674.0,25673.0,0.0209]
[1693588626005,0.32,25677.0,25673.0,0.0209]
[1693588626006,0.0039,25675.0,25674.0,0.0039]
[1693588626313,0.0239,25675.0,25674.0,0.0039]
[1693588626504,0.0039,25674.0,25673.0,1.0302]
[1693588626699,0.0039,25674.0,25673.0,0.001]
[1693588626700,0.3239,25674.0,25673.0,0.001]
[1693588626907,0.54637491,25674.0,25673.0,0.001]
[1693588627100,0.52637491,25674.0,25673.0,0.001]
[1693588627296,0.54637491,25674.0,25673.0,0.001]
[1693588627496,1.57557491,25674.0,25673.0,0.001]
[1693588627701,1.57557491,25674.0,25667.0,0.1598]
[1693588627702,0.0039,25668.0,25667.0,0.1598]
[1693588627907,0.0039,25668.0,25667.0,0.48915578]
[1693588628111,0.0039,25668.0,25667.0,0.32935578]
[1693588628404,0.0039,25668.0,25667.0,0.33325578]
[1693588628813,0.0039,25671.0,25670.0,0.0039]
[1693588629111,0.0039,25671.0,25670.0,1.36245578]
[1693588630102,0.3,25674.0,25670.0,1.36245578]
[1693588630103,0.0039,25673.0,25672.0,0.00389]
[1693588630410,0.0039,25673.0,25672.0,1.1187305]
[1693588630609,0.0039,25673.0,25672.0,0.0856405]
[1693588630803,0.0339,25671.0,25670.0,1.0322]
[1693588631105,0.03,25671.0,25670.0,1.36541843]
[1693588631314,0.035,25671.0,25670.0,1.38641843]
[1693588631507,0.005,25671.0,25670.0,1.38341843]
[1693588631909,0.037,25673.0,25672.0,0.00389]
[1693588632109,0.037,25673.0,25672.0,1.1187305]
[1693588632311,0.3039,25674.0,25673.0,0.00389]
[1693588632512,0.0039,25676.0,25675.0,0.00389]
[1693588632701,0.3039,25677.0,25676.0,0.00389]
[1693588633206,0.3039,25677.0,25676.0,0.0895305]
[1693588633406,0.0039,25678.0,25677.0,0.00389]
[1693588633604,0.3,25680.0,25677.0,1.1348405]
[1693588633605,0.3039,25680.0,25677.0,1.1348405]
[1693588633811,0.03146083,25682.0,25679.0,1.0292]
[1693588634006,0.0039,25685.0,25681.0,1.0292]
[1693588634007,0.3,25684.0,25681.0,1.0292]
[1693588634313,0.3,25684.0,25683.0,1.0292]
[1693588634815,0.3039,25684.0,25683.0,0.0856405]
[1693588635022,0.3039,25684.0,25681.0,1.0292]
[1693588635023,0.41699677,25684.0,25681.0,1.0292]
[1693588635319,0.0039,25682.0,25681.0,0.003]
[1693588635510,1.16619677,25682.0,25681.0,0.003]
[1693588635709,1.16619677,25682.0,25679.0,0.003]
[1693588635710,0.0039,25680.0,25679.0,0.003]
[1693588635902,0.11699677,25680.0,25679.0,0.003]
[1693588636105,0.13699677,25680.0,25679.0,0.003]
[1693588636316,0.0039,25679.0,25678.0,0.1543]
[1693588636517,0.0039,25675.0,25669.0,0.27351108]
[1693588636707,0.0239,25675.0,25670.0,1.27286763]
[1693588636905,0.0239,25675.0,25672.0,0.00389]
[1693588637112,0.0239,25675.0,25673.0,0.32930813]
[1693588637413,0.0039,25672.0,25671.0,0.00389]
[1693588637612,1.0292,25676.0,25672.0,0.00389]
[1693588637613,0.0039,25676.0,25672.0,0.00389]
[1693588637814,0.3039,25678.0,25674.0,1.0292]
[1693588638119,0.042,25675.0,25674.0,1.0492]
[1693588638318,0.042,25675.0,25674.0,1.29284514]
[1693588638513,0.3,25681.0,25674.0,1.29284514]
[1693588638514,0.3039,25681.0,25674.0,1.96008551]
[1693588638723,0.3039,25681.0,25679.0,1.0292]
[1693588638913,0.3039,25681.0,25679.0,1.0492]
[1693588639117,0.3039,25681.0,25679.0,1.0292]
[1693588639608,0.3039,25681.0,25680.0,0.0856405]
[1693588639812,0.3039,25681.0,25672.0,0.00689]
[1693588639813,0.0039,25676.0,25675.0,1.0292]
[1693588640012,0.03153569,25685.0,25674.0,0.00389]
[1693588640013,0.0039,25675.0,25674.0,0.00389]
[1693588640215,0.0039,25674.0,25673.0,0.00389]
[1693588640714,0.0039,25675.0,25674.0,0.00389]
[1693588640918,0.3039,25677.0,25673.0,1.0292]
[1693588641121,0.3239,25677.0,25675.0,1.0292]
[1693588641424,0.0039,25674.0,25673.0,0.00989]
[1693588641724,0.41699677,25674.0,25673.0,0.006]
[1693588641911,0.0039,25671.0,25670.0,0.00389]
[1693588642113,0.3039,25671.0,25670.0,0.00389]
[1693588642314,0.0039,25669.0,25668.0,0.0131]
[1693588642521,0.0239,25669.0,25668.0,0.0131]
[1693588642726,0.13699677,25669.0,25668.0,0.0131]
[1693588642922,0.24637491,25669.0,25668.0,0.0131]
[1693588643317,0.22637491,25669.0,25668.0,0.0131]
[1693588643517,1.27557491,25669.0,25668.0,0.0131]
[1693588644619,1.28857491,25669.0,25668.0,0.0161]
[1693588644825,1.28857491,25669.0,25668.0,0.0191]
[1693588646223,0.25937491,25669.0,25668.0,0.26282814]
[1693588646726,0.0169,25669.0,25668.0,0.34846864]
[1693588646927,0.0169,25669.0,25668.0,1.37466864]
[1693588647127,0.0169,25669.0,25668.0,1.37766864]
[1693588648423,0.0169,25669.0,25668.0,1.37366864]
[1693588648618,0.0169,25669.0,25668.0,1.37666864]
[1693588649245,0.14999677,25669.0,25668.0,0.26182814]
[1693588649521,1.47919677,25669.0,25668.0,0.0181]
[1693588649725,0.0039,25659.0,25657.0,1.14538918]
[1693588649918,0.3,25660.0,25658.0,0.24376913]
[1693588650118,0.3,25660.0,25658.0,0.26376913]
[1693588650318,0.3,25660.0,25659.0,0.32940963]
[1693588650625,0.3,25660.0,25659.0,0.24376913]
[1693588650826,0.3,25660.0,25659.0,0.32940963]
[1693588651022,0.3,25660.0,25659.0,0.24376913]
[1693588651322,0.46409677,25660.0,25658.0,0.24776913]
[1693588651631,0.351,25660.0,25659.0,0.24376913]
[1693588651824,0.46409677,25660.0,25659.0,0.24576913]
[1693588652221,0.57347491,25660.0,25659.0,0.24576913]
[1693588652630,1.60267491,25660.0,25659.0,0.21455068]
[1693588652930,1.60267491,25660.0,25659.0,0.002]
[1693588653520,1.60267491,25660.0,25659.0,0.004]
[1693588653735,0.57347491,25660.0,25659.0,0.002]
[1693588653934,0.46409677,25660.0,25659.0,0.002]
[1693588654128,0.43609677,25660.0,25658.0,0.002]
[1693588654336,0.43609677,25660.0,25651.0,0.27048918]
[1693588654337,0.337,25660.0,25659.0,1.0322]
[1693588654517,0.34,25660.0,25659.0,1.29598777]
[1693588655028,0.351,25660.0,25659.0,0.24778777]
[1693588656124,0.57347491,25660.0,25659.0,0.24778777]
[1693588656425,0.57047491,25660.0,25659.0,0.002]
[1693588656726,0.54547491,25660.0,25659.0,0.006]
[1693588656931,0.58247491,25660.0,25659.0,0.006]
[1693588657125,0.58247491,25660.0,25659.0,0.0906405]
[1693588657126,0.34,25660.0,25659.0,0.0906405]
[1693588657327,0.34,25660.0,25659.0,0.005]
[1693588657526,0.303,25660.0,25659.0,0.002]
[1693588657728,0.34,25660.0,25659.0,1.1208405]
[1693588657922,0.34,25660.0,25659.0,1.38461777]
[1693588658136,0.34,25660.0,25659.0,1.36461777]
[1693588658432,0.34,25660.0,25659.0,1.38361777]
[1693588658433,0.332,25660.0,25659.0,1.38361777]
[1693588659429,0.332,25660.0,25659.0,1.1398405]
[1693588659627,0.332,25660.0,25659.0,1.38360229]
[1693588659823,0.332,25660.0,25659.0,1.38260229]
[1693588660023,0.306,25660.0,25659.0,1.41760229]
[1693588660425,0.303,25660.0,25659.0,1.44660229]
[1693588661631,0.303,25660.0,25659.0,1.34096179]
[1693588661632,0.3069,25660.0,25659.0,1.34096179]
[1693588661837,0.3069,25660.0,25659.0,0.31176179]
[1693588662137,0.3069,25660.0,25659.0,0.39740229]
[1693588662331,0.303,25660.0,25659.0,1.34096179]
[1693588662634,0.303,25660.0,25659.0,1.42660229]
[1693588664632,0.303,25660.0,25659.0,1.44660229]
[1693588664633,0.003,25660.0,25659.0,1.44660229]